bitfinex/quotes_SOLUSD_20240811
["timestamp","ask_amount","ask_price","bid_price","bid_amount"]
[1723374527745,0.8368772,154.96,154.85,15.19]
[1723374527949,1.61400763,154.95,154.85,15.19]
[1723374528145,0.12549,154.94,154.85,15.19]
[1723374528534,65.37647,154.95,154.85,15.19]
[1723374528535,65.50196,154.95,154.85,15.19]
[1723374528946,67.11613497,154.95,154.85,15.19]
[1723374529831,65.50196,154.95,154.85,15.19]
[1723374530027,67.11613376,154.95,154.85,15.19]
[1723374530279,45.50196,154.95,154.85,15.19]
[1723374530461,0.8368772,154.96,154.86,20.0]
[1723374530632,1.6139088,154.95,154.86,20.0]
[1723374531146,1.6139088,154.95,154.85,15.19]
[1723374531639,0.25098,154.94,154.85,15.19]
[1723374531846,0.12549,154.92,154.85,15.19]
[1723374532030,0.25098,154.92,154.85,15.19]
[1723374532231,0.25098,154.91,154.85,15.19]
[1723374532451,0.25098,154.9,154.81,16.1089]
[1723374532636,0.25098,154.89,154.82,20.0]
[1723374533145,0.12549,154.89,154.82,20.0]
[1723374533348,0.12549,154.9,154.82,20.0]
[1723374539963,0.37647,154.9,154.82,20.0]
[1723374540165,0.25098,154.89,154.82,20.0]
[1723374540362,0.25098,154.88,154.82,20.0]
[1723374540539,0.12549,154.87,154.82,20.0]
[1723374541365,0.12549,154.87,154.77,22.79294109]
[1723374541366,0.25098,154.87,154.77,22.79294109]
[1723374541564,0.25098,154.86,154.78,7.75613985]
[1723374541738,0.25098,154.87,154.78,7.75613985]
[1723374541739,0.12549,154.87,154.78,7.75613985]
[1723374541938,43.37647,154.88,154.78,7.75613985]
[1723374542136,0.12549,154.87,154.78,7.75613985]
[1723374542340,1.74026865,154.87,154.77,16.1089]
[1723374542563,0.12549,154.87,154.77,16.1089]
[1723374542765,0.12549,154.87,154.78,20.0]
[1723374543065,43.37647,154.88,154.78,20.0]
[1723374543563,1.74021858,154.87,154.78,20.0]
[1723374543942,0.12549,154.86,154.78,20.0]
[1723374544143,0.37647,154.86,154.78,20.0]
[1723374544665,1.74033422,154.85,154.77,16.1089]
[1723374544868,0.37647,154.84,154.74,1.11047203]
[1723374545064,1.61513073,154.83,154.75,7.75807418]
[1723374545262,0.25098,154.82,154.74,1.11047203]
[1723374545568,1.86622246,154.82,154.74,1.11047203]
[1723374545766,0.12549,154.81,154.74,1.11047203]
[1723374545944,45.25098,154.82,154.74,1.11047203]
[1723374546949,1.86636916,154.81,154.74,1.11047203]
[1723374547150,0.12549,154.8,154.73,20.0]
[1723374547358,45.25098,154.8,154.73,20.0]
[1723374548146,46.86643186,154.8,154.73,20.0]
[1723374548563,45.25098,154.8,154.73,20.0]
[1723374548878,21.86669067,154.79,154.68,15.4677]
[1723374549173,0.12549,154.77,154.68,15.4677]
[1723374549351,0.25098,154.77,154.68,15.4677]
[1723374549550,0.25098,154.76,154.68,15.4677]
[1723374551350,0.25098,154.75,154.66,6.5068]
[1723374551552,0.12549,154.74,154.67,20.0]
[1723374551751,0.25098,154.74,154.67,20.0]
[1723374551980,0.12549,154.75,154.67,20.0]
[1723374552164,0.12549,154.76,154.66,20.0]
[1723374553059,16.4658,154.78,154.67,0.25098]
[1723374553246,16.4658,154.78,154.68,0.12549]
[1723374553447,16.4658,154.78,154.67,0.12549]
[1723374553874,16.4658,154.78,154.66,20.0]
[1723374554252,45.0,154.77,154.67,0.12549]
[1723374554459,45.0,154.77,154.67,0.25098]
[1723374555661,16.4658,154.78,154.67,0.25098]
[1723374556848,0.25098,154.77,154.66,20.0]
[1723374557176,45.0,154.77,154.66,20.0]
[1723374558259,45.0,154.77,154.67,0.25098]
[1723374559885,0.12549,154.76,154.66,20.0]
[1723374560076,45.0,154.77,154.67,0.12549]
[1723374560269,45.0,154.77,154.66,20.0]
[1723374561066,45.0,154.77,154.67,0.25098]
[1723374562794,45.0,154.77,154.68,0.25098]
[1723374564374,45.0,154.77,154.69,0.25098]
[1723374565878,45.0,154.77,154.66,20.0]
[1723374566066,45.0,154.77,154.66,22.60793745]
[1723374569080,0.12549,154.76,154.66,22.60793745]
[1723374570894,2.11773597,154.76,154.66,2.60793745]
[1723374571068,0.50196,154.76,154.65,17.98592693]
[1723374572086,1.61600593,154.75,154.65,17.98592693]
[1723374572396,0.25098,154.74,154.65,16.87473657]
[1723374572576,0.25098,154.74,154.65,19.43605944]
[1723374572968,0.12549,154.76,154.65,19.43605944]
[1723374573261,6.3284,154.81,154.66,20.50196]
[1723374574791,6.3284,154.81,154.67,22.0002]
[1723374574986,6.3284,154.81,154.68,20.37647]
[1723374575196,6.3284,154.81,154.69,0.12549]
[1723374575884,6.0849,154.85,154.7,0.12549]
[1723374576187,7.70003598,154.85,154.7,20.37647]
[1723374576764,7.70003598,154.85,154.71,20.0]
[1723374576969,7.70003598,154.85,154.69,0.12549]
[1723374577293,45.0,154.81,154.69,0.50196]
[1723374578491,1.61518301,154.8,154.69,0.50196]
[1723374579091,45.0,154.81,154.69,3.11749132]
[1723374579306,0.25098,154.8,154.69,2.86651132]
[1723374579476,0.12549,154.79,154.69,2.74102132]
[1723374580780,0.12549,154.79,154.69,2.61553132]
[1723374581090,0.12549,154.79,154.68,20.0]
[1723374583381,0.12549,154.78,154.68,20.0]
[1723374583594,6.46137,154.78,154.68,20.0]
[1723374583779,0.12549,154.76,154.68,20.0]
[1723374583984,0.25098,154.76,154.68,20.0]
[1723374584392,45.12549,154.77,154.68,20.0]
[1723374585286,0.12549,154.76,154.68,20.0]
[1723374586881,45.12549,154.77,154.68,20.0]
[1723374588304,1.7412975,154.76,154.68,20.0]
[1723374588509,0.12549,154.76,154.68,20.0]
[1723374589310,0.25098,154.76,154.68,20.0]
[1723374592319,45.12549,154.77,154.68,20.0]
[1723374594815,6.0849,154.78,154.68,20.0]
[1723374595107,6.0849,154.78,154.69,0.12549]
[1723374595681,22.5241,154.82,154.69,0.12549]
[1723374596107,1.61553459,154.81,154.68,20.0]
[1723374596312,46.61553459,154.81,154.68,20.0]
[1723374596500,0.12549,154.8,154.68,20.0]
[1723374596683,0.50196,154.8,154.68,20.0]
[1723374597019,0.50196,154.8,154.69,7.76261621]
[1723374597215,0.50196,154.8,154.7,20.0]
[1723374597724,0.50196,154.8,154.69,0.12549]
[1723374598908,0.50196,154.8,154.68,20.12549]
[1723374599218,2.11744943,154.8,154.69,7.76244018]
[1723374599396,0.12549,154.78,154.7,20.0]
[1723374599600,0.50196,154.78,154.68,20.0]
[1723374600295,0.50196,154.78,154.67,15.6279]
[1723374600616,20.50196,154.78,154.67,15.6279]
[1723374600803,0.12549,154.76,154.67,15.6279]
[1723374601115,0.50196,154.76,154.67,15.6279]
[1723374602612,6.0583,154.75,154.67,15.6279]
[1723374602807,45.0,154.74,154.67,15.6279]
[1723374604831,45.0,154.74,154.68,20.0]
[1723374605797,6.5874,154.8,154.68,20.0]
[1723374606299,8.20291668,154.8,154.68,20.0]
[1723374606511,1.6155162,154.79,154.68,20.0]
[1723374606823,20.0,154.79,154.68,20.0]
[1723374607198,0.25098,154.78,154.68,20.0]
[1723374607411,0.12549,154.77,154.68,20.0]
[1723374607926,45.37647,154.78,154.68,20.0]
[1723374608618,45.37647,154.78,154.67,22.36856815]
[1723374608818,0.12549,154.77,154.68,7.76306949]
[1723374609127,0.12549,154.77,154.67,22.36856815]
[1723374611734,45.12549,154.78,154.68,20.25098]
[1723374611895,6.5874,154.8,154.68,20.25098]
[1723374612226,20.0,154.79,154.68,20.25098]
[1723374612418,20.0,154.79,154.68,20.0]
[1723374612720,6.5874,154.8,154.68,20.0]
[1723374613205,45.50196,154.79,154.68,20.0]
[1723374614136,45.37647,154.79,154.69,0.12549]
[1723374614340,45.25098,154.79,154.69,0.12549]
[1723374615215,0.12549,154.78,154.68,20.0]
[1723374615926,0.25098,154.78,154.68,20.0]
[1723374616111,0.25098,154.77,154.68,20.0]
[1723374616507,0.12549,154.77,154.68,20.0]
[1723374617024,45.0,154.79,154.68,20.0]
[1723374617222,0.25098,154.78,154.68,20.0]
[1723374617428,0.12549,154.78,154.68,20.0]
[1723374617729,45.0,154.79,154.69,0.12549]
[1723374620208,0.12549,154.78,154.68,20.0]
[1723374620414,0.25098,154.78,154.68,20.0]
[1723374622714,0.25098,154.77,154.68,20.0]
[1723374622914,45.0,154.79,154.69,0.12549]
[1723374623435,45.0,154.79,154.69,6.19839]
[1723374623610,45.0,154.79,154.7,20.0]
[1723374623811,6.475,154.83,154.7,20.0]
[1723374624012,6.5874,154.84,154.73,0.12549]
[1723374624340,6.5874,154.88,154.74,21.7529]
[1723374624503,17.14567514,154.91,154.77,0.12549]
[1723374624504,17.63513695,154.91,154.77,0.12549]
[1723374624834,37.08385879,154.91,154.76,15.68]
[1723374625022,11.63938669,154.9,154.76,15.68]
[1723374625206,7.81030922,154.9,154.77,20.12549]
[1723374625409,1.61452851,154.89,154.77,20.25098]
[1723374625630,1.61452851,154.89,154.78,0.25098]
[1723374625938,1.61452851,154.89,154.78,0.12549]
[1723374626113,1.61452851,154.89,154.77,20.25098]
[1723374626315,1.61452851,154.89,154.77,20.12549]
[1723374626509,21.61461126,154.9,154.77,20.12549]
[1723374626712,1.61461008,154.89,154.77,20.0]
[1723374627008,0.12549,154.88,154.78,0.12549]
[1723374627210,0.12549,154.89,154.78,0.25098]
[1723374627411,1.61453334,154.89,154.77,20.0]
[1723374627625,0.25098,154.88,154.77,20.0]
[1723374628014,0.25098,154.88,154.77,22.67136753]
[1723374628218,0.25098,154.89,154.77,22.67136753]
[1723374628412,45.25098,154.89,154.77,22.67136753]
[1723374628619,0.12549,154.88,154.77,22.67136753]
[1723374628910,0.12549,154.88,154.78,0.12549]
[1723374629111,0.12549,154.88,154.78,0.25098]
[1723374629307,45.25098,154.89,154.78,0.25098]
[1723374629308,45.12549,154.89,154.78,0.25098]
[1723374629509,45.12549,154.9,154.79,0.12549]
[1723374629737,0.12549,154.89,154.79,0.25098]
[1723374629933,0.25098,154.89,154.79,0.12549]
[1723374630133,0.25098,154.89,154.78,0.37647]
[1723374630328,1.86541634,154.89,154.78,0.37647]
[1723374630713,0.12549,154.88,154.77,22.67136753]
[1723374631014,0.25098,154.89,154.77,22.67136753]
[1723374632233,0.25098,154.89,154.78,0.37647]
[1723374632433,1.86549165,154.89,154.78,0.37647]
[1723374632644,0.25098,154.89,154.78,0.37647]
[1723374632943,16.22533333,155.03,154.78,0.37647]
[1723374632944,15.9038,154.95,154.8,0.12549]
[1723374633118,15.9038,154.95,154.8,20.37647]
[1723374633311,17.51796799,154.95,154.8,20.0]
[1723374633732,24.94150864,154.95,154.8,20.0]
[1723374634132,20.0,154.94,154.8,20.0]
[1723374634327,46.61451123,154.93,154.8,20.0]
[1723374634536,21.61450836,154.92,154.8,20.0]
[1723374634722,45.50196,154.91,154.8,20.0]
[1723374634921,21.61451059,154.9,154.79,22.613]
[1723374635130,20.0,154.92,154.79,22.613]
[1723374635324,21.61450779,154.92,154.79,22.613]
[1723374635945,1.61450779,154.92,154.79,22.613]
[1723374636120,0.12549,154.91,154.79,22.613]
[1723374636326,0.50196,154.91,154.79,22.613]
[1723374637025,23.32734065,154.95,154.82,16.1641]
[1723374637026,15.9038,154.95,154.82,16.1641]
[1723374637229,15.9038,154.95,154.83,20.0]
[1723374637633,1.61419217,154.94,154.82,16.1641]
[1723374638347,0.12549,154.93,154.82,16.1641]
[1723374638546,0.25098,154.93,154.82,16.1641]
[1723374639333,65.0,154.94,154.82,16.1641]
[1723374639531,1.61411799,154.93,154.83,20.0]
[1723374640045,65.0,154.94,154.82,16.1641]
[1723374640251,1.61429784,154.93,154.82,16.1641]
[1723374640634,65.0,154.94,154.82,16.1641]
[1723374640635,2.1164099,154.92,154.82,16.1641]
[1723374644252,0.50196,154.92,154.82,16.1641]
[1723374645849,20.50196,154.92,154.82,16.1641]
[1723374646053,0.12549,154.9,154.82,16.1641]
[1723374646347,0.50196,154.9,154.82,16.1641]
[1723374646850,20.0,154.92,154.82,16.1641]
[1723374647160,15.9038,154.95,154.82,16.1641]
[1723374647455,15.9038,154.95,154.83,20.0]
[1723374647845,1.61414481,154.94,154.82,16.1641]
[1723374648236,0.37647,154.93,154.82,16.1641]
[1723374648433,0.12549,154.92,154.82,16.1641]
[1723374648751,0.12549,154.91,154.82,16.1641]
[1723374649060,0.37647,154.91,154.82,16.1641]
[1723374649230,0.12549,154.89,154.82,16.1641]
[1723374649554,7.7403924,154.89,154.78,15.7202]
[1723374649739,0.12549,154.87,154.78,15.7202]
[1723374655058,1.74022771,154.87,154.78,15.7202]
[1723374655250,0.12549,154.85,154.78,15.7202]
[1723374655457,0.25098,154.85,154.78,15.7202]
[1723374655744,0.12549,154.83,154.75,6.3829]
[1723374655946,0.25098,154.83,154.74,22.45525372]
[1723374656249,0.25098,154.82,154.74,15.7202]
[1723374656459,0.12549,154.81,154.74,15.7202]
[1723374656765,1.86623989,154.82,154.74,15.7202]
[1723374656944,1.61525989,154.82,154.74,15.7202]
[1723374657138,20.0,154.87,154.75,20.0]
[1723374657352,45.50196,154.86,154.75,20.0]
[1723374658042,0.37647,154.86,154.75,20.0]
[1723374658242,0.25098,154.86,154.76,0.12549]
[1723374658443,0.37647,154.87,154.76,0.12549]
[1723374658658,0.37647,154.87,154.76,0.25098]
[1723374659454,45.37647,154.87,154.76,0.25098]
[1723374660864,7.42354065,154.93,154.78,0.12549]
[1723374660865,15.2945,154.92,154.78,0.12549]
[1723374661076,15.2945,154.92,154.79,15.7202]
[1723374661384,16.90891841,154.92,154.79,15.7202]
[1723374661681,15.2945,154.92,154.8,20.12549]
[1723374661871,6.0002,154.93,154.81,0.12549]
[1723374662078,16.1313772,154.96,154.83,22.1031]
[1723374662254,1.61392682,154.95,154.83,22.1031]
[1723374662454,1.61392682,154.95,154.83,15.7202]
[1723374663275,0.25098,154.94,154.83,15.7202]
[1723374663584,0.12549,154.92,154.83,15.7202]
[1723374663777,1.86541389,154.92,154.83,15.7202]
[1723374664077,1.86541389,154.92,154.79,22.1031]
[1723374664078,0.12549,154.9,154.79,22.1031]
[1723374664268,7.86585625,154.9,154.79,22.1031]
[1723374664469,0.12549,154.88,154.79,22.1031]
[1723374664661,0.25098,154.88,154.79,22.1031]
[1723374664872,0.25098,154.87,154.79,22.1031]
[1723374665401,0.12549,154.87,154.79,22.1031]
[1723374665585,1.86555024,154.87,154.79,22.1031]
[1723374665769,0.25098,154.87,154.79,22.1031]
[1723374665978,0.12549,154.87,154.79,22.1031]
[1723374666159,20.0,154.89,154.79,22.1031]
[1723374666564,21.61442414,154.89,154.79,22.1031]
[1723374666967,36.1725,154.89,154.79,15.7202]
[1723374667482,0.25098,154.88,154.79,15.7202]
[1723374667777,0.25098,154.87,154.79,15.7202]
[1723374667968,20.25098,154.87,154.79,15.7202]
[1723374668173,45.0,154.86,154.79,15.7202]
[1723374668481,6.0002,154.9,154.79,15.7202]
[1723374668776,6.0002,154.9,154.8,20.0]
[1723374668982,16.1725,154.93,154.8,20.0]
[1723374669471,16.1725,154.93,154.81,0.12549]
[1723374669673,16.1725,154.93,154.82,6.5989]
[1723374670181,6.6629,154.94,154.82,6.5989]
[1723374670482,1.61414908,154.93,154.79,15.7202]
[1723374670796,0.12549,154.91,154.79,15.7202]
[1723374670970,20.12549,154.91,154.79,15.7202]
[1723374671281,0.12549,154.89,154.79,15.7202]
[1723374671493,0.12549,154.87,154.75,15.2679]
[1723374671658,65.37647,154.87,154.75,15.2679]
[1723374671857,0.12549,154.86,154.75,15.2679]
[1723374672076,16.29799,154.85,154.75,15.2679]
[1723374672260,0.12549,154.83,154.75,15.2679]
[1723374672908,0.12549,154.83,154.71,15.2679]
[1723374673082,0.12549,154.83,154.72,20.0]
[1723374673378,0.12549,154.81,154.71,15.2679]
[1723374673567,66.99189249,154.81,154.71,15.2679]
[1723374673766,0.12549,154.8,154.71,15.2679]
[1723374673980,0.12549,154.79,154.71,15.2679]
[1723374674182,0.37647,154.79,154.71,15.2679]
[1723374674381,0.12549,154.78,154.71,15.2679]
[1723374674590,0.37647,154.78,154.71,15.2679]
[1723374675083,0.12549,154.77,154.67,10.12532389]
[1723374675280,0.37647,154.77,154.67,10.12532389]
[1723374675586,0.12549,154.76,154.67,10.12532389]
[1723374675877,0.37647,154.76,154.67,10.12532389]
[1723374676863,65.0,154.81,154.67,10.12532389]
[1723374677080,0.50196,154.8,154.67,10.12532389]
[1723374678804,0.50196,154.8,154.66,22.01654302]
[1723374678805,6.78839,154.77,154.66,6.74864302]
[1723374678987,0.12549,154.75,154.66,6.74864302]
[1723374679162,1.99257204,154.75,154.62,25.39680124]
[1723374679362,0.25098,154.75,154.62,25.39680124]
[1723374679788,0.12549,154.74,154.62,32.14102311]
[1723374679995,0.50196,154.74,154.62,32.14102311]
[1723374680191,0.50196,154.74,154.63,20.0]
[1723374680971,0.50196,154.74,154.62,25.39680124]
[1723374683989,0.50196,154.74,154.62,10.12890124]
[1723374684364,0.12549,154.72,154.58,16.39354396]
[1723374684696,1.61650328,154.71,154.59,10.13005999]
[1723374684992,0.12549,154.69,154.58,15.2679]
[1723374685171,0.12549,154.69,154.58,25.39925285]
[1723374686763,1.74213703,154.69,154.58,25.39925285]
[1723374686994,0.37647,154.68,154.58,25.39925285]
[1723374687694,0.37647,154.68,154.58,15.2679]
[1723374687695,0.12549,154.67,154.58,15.2679]
[1723374687872,0.12549,154.67,154.58,25.40036914]
[1723374688068,0.12549,154.67,154.58,15.2679]
[1723374689099,6.0346,154.66,154.58,15.2679]
[1723374689278,6.0346,154.66,154.55,6.74481225]
[1723374689279,45.37647,154.65,154.55,6.74481225]
[1723374689670,40.37647,154.65,154.55,6.74481225]
[1723374690994,20.12549,154.64,154.53,10.13388444]
[1723374691799,0.12549,154.62,154.53,10.13388444]
[1723374693186,20.12549,154.62,154.5,257.9783305]
[1723374693386,45.25098,154.61,154.5,41.86811904]
[1723374693778,0.12549,154.59,154.5,41.86811904]
[1723374694001,62.78235127,154.59,154.5,20.0]
[1723374694193,20.0,154.58,154.5,20.0]
[1723374694499,45.0,154.57,154.5,20.0]
[1723374694670,20.0,154.56,154.5,20.0]
[1723374694877,45.0,154.55,154.5,20.0]
[1723374695208,20.0,154.56,154.5,20.0]
[1723374695500,20.0,154.58,154.5,20.0]
[1723374695683,65.0,154.58,154.5,20.0]
[1723374697672,0.12549,154.57,154.5,20.0]
[1723374697877,65.0,154.58,154.5,20.0]
[1723374698390,0.12549,154.57,154.5,20.0]
[1723374698595,0.50196,154.57,154.5,20.0]
[1723374698909,6.0346,154.6,154.5,20.0]
[1723374699199,20.0,154.59,154.5,20.0]
[1723374699417,6.0346,154.6,154.51,0.25098]
[1723374699701,15.6628,154.63,154.53,0.12549]
[1723374699888,15.6628,154.63,154.53,0.25098]
[1723374700282,15.6628,154.63,154.53,0.12549]
[1723374700476,15.6628,154.63,154.52,15.37758]
[1723374700685,15.6628,154.63,154.53,0.25098]
[1723374700902,6.0346,154.65,154.55,0.12549]
[1723374701085,6.0346,154.65,154.55,0.25098]
[1723374701399,21.6974,154.69,154.56,0.25098]
[1723374702305,21.6974,154.69,154.55,0.12549]
[1723374702796,20.0,154.68,154.54,0.25098]
[1723374702996,20.0,154.68,154.54,0.12549]
[1723374703207,20.0,154.68,154.54,0.25098]
[1723374703407,0.12549,154.66,154.54,0.37647]
[1723374703704,0.12549,154.66,154.53,20.12549]
[1723374703705,0.37647,154.66,154.52,15.1266]
[1723374704004,0.12549,154.65,154.52,15.1266]
[1723374704190,0.12549,154.64,154.52,15.1266]
[1723374704393,21.99361058,154.64,154.52,15.1266]
[1723374704585,45.0,154.63,154.52,15.1266]
[1723374705091,46.61711714,154.63,154.52,15.1266]
[1723374705287,22.77966,154.62,154.52,15.1266]
[1723374705487,65.0,154.61,154.52,15.1266]
[1723374705684,0.37647,154.6,154.52,15.1266]
[1723374706298,45.0,154.61,154.52,15.1266]
[1723374706987,15.6213,154.66,154.52,15.1266]
[1723374707192,15.6213,154.66,154.53,20.50196]
[1723374707193,22.2777,154.66,154.53,20.50196]
[1723374707396,1.61695803,154.65,154.53,20.50196]
[1723374707599,22.2777,154.66,154.53,20.50196]
[1723374708392,45.12549,154.65,154.53,20.50196]
[1723374708605,20.0,154.64,154.53,20.50196]
[1723374708792,45.0,154.63,154.53,20.50196]
[1723374710199,45.0,154.63,154.53,20.25098]
[1723374710506,45.0,154.63,154.53,20.12549]
[1723374713784,45.0,154.63,154.54,0.25098]
[1723374714389,22.2777,154.7,154.56,15.1613]
[1723374715716,23.89438152,154.7,154.57,6.0352]
[1723374716020,22.2777,154.7,154.57,6.0352]
[1723374716314,20.0,154.69,154.57,6.0352]
[1723374716514,0.12549,154.68,154.57,6.0352]
[1723374716710,45.50196,154.68,154.57,6.0352]
[1723374716890,0.12549,154.66,154.57,6.0352]
[1723374717092,45.50196,154.66,154.57,6.0352]
[1723374719787,0.12549,154.64,154.56,15.1613]
[1723374719996,47.11910907,154.64,154.56,15.1613]
[1723374720204,45.50196,154.64,154.56,15.1613]
[1723374720384,45.37647,154.64,154.56,15.1613]
[1723374721203,46.99348429,154.64,154.56,15.1613]
[1723374721409,0.12549,154.63,154.56,15.1613]
[1723374721620,0.37647,154.63,154.56,15.1613]
[1723374721916,0.37647,154.63,154.53,26.0352]
[1723374721917,0.12549,154.62,154.53,6.0352]
[1723374722213,0.37647,154.62,154.53,6.0352]
[1723374722513,0.12549,154.61,154.53,6.0352]
[1723374722717,20.37647,154.61,154.53,6.0352]
[1723374722897,45.0,154.6,154.53,6.0352]
[1723374723708,0.50196,154.59,154.53,6.0352]
[1723374724594,0.50196,154.59,154.52,15.1613]
[1723374724794,20.50196,154.59,154.52,15.1613]
[1723374724990,45.0,154.58,154.52,15.1613]
[1723374725714,46.61765946,154.58,154.52,15.1613]
[1723374725913,2.11971619,154.57,154.49,6.0352]
[1723374726092,22.11971619,154.57,154.49,6.0352]
[1723374726293,45.0,154.56,154.49,6.0352]
[1723374727101,0.25098,154.55,154.49,6.0352]
[1723374727594,0.12549,154.55,154.49,6.0352]
[1723374727789,45.0,154.56,154.49,6.0352]
[1723374729744,0.12549,154.62,154.49,6.0352]
[1723374729919,0.25098,154.62,154.49,6.0352]
[1723374730235,22.2777,154.63,154.49,6.0352]
[1723374730717,22.2777,154.63,154.49,6.16069]
[1723374731035,20.0,154.62,154.49,6.16069]
[1723374731910,0.25098,154.61,154.49,6.16069]
[1723374732335,0.37647,154.6,154.49,6.16069]
[1723374732538,0.12549,154.59,154.49,6.16069]
[1723374732739,45.12549,154.59,154.49,6.0352]
[1723374734925,20.37647,154.6,154.51,15.2287]
[1723374734926,20.0,154.6,154.51,15.2287]
[1723374735240,20.0,154.62,154.51,15.2287]
[1723374735836,1.61761497,154.61,154.51,15.2287]
[1723374736015,20.0,154.62,154.51,15.2287]
[1723374736215,0.12549,154.61,154.51,15.2287]
[1723374736414,47.11957257,154.61,154.51,15.2287]
[1723374736616,0.12549,154.59,154.51,15.2287]
[1723374736920,45.50196,154.59,154.51,15.2287]
[1723374742256,6.6564,154.63,154.51,15.2287]
[1723374742453,7.65273865,154.65,154.51,15.2287]
[1723374743153,6.5036,154.67,154.55,15.2287]
[1723374743934,9.26969258,154.66,154.55,15.2287]
[1723374744437,0.25098,154.65,154.55,15.2287]
[1723374744629,0.12549,154.63,154.55,15.2287]
[1723374744955,0.25098,154.63,154.55,15.2287]
[1723374745139,0.25098,154.62,154.55,15.2287]
[1723374745522,20.25098,154.62,154.55,15.2287]
[1723374745724,45.0,154.61,154.55,15.2287]
[1723374746139,0.12549,154.6,154.55,15.2287]
[1723374746427,0.12549,154.59,154.55,15.2287]
[1723374746624,45.0,154.61,154.55,15.2287]
[1723374746939,0.37647,154.6,154.55,15.2287]
[1723374747136,45.0,154.61,154.55,15.2287]
[1723374749932,0.12549,154.67,154.55,15.2287]
[1723374750136,15.6645,154.68,154.55,15.2287]
[1723374751229,20.0,154.67,154.55,15.2287]
[1723374751438,45.50196,154.66,154.55,15.2287]
[1723374751654,20.0,154.65,154.55,15.2287]
[1723374751833,45.12549,154.64,154.55,15.2287]
[1723374754954,0.37647,154.63,154.55,15.2287]
[1723374755160,45.12549,154.64,154.55,15.2287]
[1723374755672,0.12549,154.63,154.55,15.2287]
[1723374755966,0.37647,154.63,154.55,15.2287]
[1723374756257,45.0,154.64,154.55,15.2287]
[1723374756476,0.12549,154.63,154.55,15.2287]
[1723374757850,0.50196,154.63,154.55,15.2287]
[1723374758057,20.50196,154.63,154.55,15.2287]
[1723374758263,0.12549,154.61,154.55,15.2287]
[1723374758466,0.37647,154.61,154.55,15.2287]
[1723374758673,0.12549,154.6,154.55,15.2287]
[1723374758952,0.12549,154.59,154.55,15.2287]
[1723374759129,20.37647,154.59,154.55,15.2287]
[1723374759330,45.0,154.58,154.55,15.2287]
[1723374760760,0.25098,154.57,154.55,15.2287]
[1723374761133,0.12549,154.57,154.55,15.2287]
[1723374761562,0.25098,154.57,154.55,15.2287]
[1723374761928,0.25098,154.57,154.51,15.4402]
[1723374762174,20.25098,154.57,154.51,15.4402]
[1723374762341,45.0,154.56,154.51,15.4402]
[1723374767046,0.25098,154.59,154.51,15.4402]
[1723374767245,0.12549,154.59,154.51,15.4402]
[1723374767453,0.25098,154.59,154.51,15.4402]
[1723374767663,6.60349,154.58,154.51,15.4402]
[1723374767977,45.0,154.57,154.51,15.4402]
[1723374771153,51.60349,154.58,154.51,15.4402]
[1723374771362,20.25098,154.57,154.51,15.4402]
[1723374771563,45.0,154.56,154.51,15.4402]
[1723374780259,20.12549,154.55,154.51,15.4402]
[1723374780466,45.0,154.54,154.51,15.4402]
[1723374781268,20.0,154.68,154.51,15.4402]
[1723374781453,7.68568109,154.64,154.51,15.4402]
[1723374781778,15.33841974,154.64,154.51,15.4402]